[Event "15th Tashkent Open Agzamov 2022"]
[Site "Tashkent"]
[Date "2022.05.08"]
[Round "7.2"]
[White "Abdisalimov, Abdimalik"]
[Black "Sindarov, Javokhir"]
[Result "0-1"]
[ECO "E70"]
[WhiteElo "2435"]
[BlackElo "2609"]
[Annotator "TA"]
[PlyCount "76"]
[EventDate "2022.05.05"]
[EventType "swiss"]
[EventCountry "UZB"]
[SourceTitle "playchess.com"]
[Source "ChessBase"]
[SourceQuality "1"]
[TimeControl "5400+30"]

{[%evp 21,76,27,41,12,11,20,25,15,22,18,20,12,25,0,0,-7,0,-4,0,-49,-34,-113,-39,-53,0,-89,0,0,20,-52,-54,-80,-79,-221,-259,-245,-247,-265,-258,-270,-262,-272,-265,-1021,-443,-1150,-1306,-1258,-1305,-1241,-1254,-1250,-1052,-29994,-29977,-29995,-29996]} 1. d4 {[%emt 0:00:02]} Nf6 {[%emt 0:00:04]} 2. c4 {[%emt 0:00:04]} g6 {[%emt 0:00:02]} 3. Nc3 {[%emt 0:00:05]} Bg7 {[%emt 0:00:03]} 4. e4 {[%emt 0:03:17]} d6 {[%emt 0:00:09]} 5. Nge2 {[%emt 0:03:20]} O-O {[%emt 0:00:06]} 6. Ng3 {[%emt 0:00:13]} a5 {[%emt 0:11:27]} 7. Be2 {[%emt 0:02:44]} e5 {[%emt 0:00:49]} 8. d5 {[%emt 0:00:52]} Na6 {[%emt 0:06:06]} 9. h4 {[%emt 0:00:13]} h5 {[%emt 0:01:09]} 10. Bg5 {[%emt 0:00:05]} Qe8 {[%emt 0:01:42]} 11. Qd2 {[%emt 0:00:07]} Kh7 {[%emt 0:01:48]} 12. O-O-O {[%emt 0:08:18] E70: King's Indian: Miscellaneous lines with 4 e4, including 5 Nge2 and 5 Bd3 0-0 6 Nge2.} Ng4 {[%emt 0:05:17]} 13. Qe1 {[%emt 0:11:14]} f6 {[%emt 0:01:08]} 14. Bd2 {[%emt 0:01:00] [#] White has an edge.} Bh6 $146 {[%emt 0:00:14]} ({Predecessor:} 14... f5 15. f3 Nh6 16. Kb1 f4 17. Nf1 a4 18. Nb5 Bd7 19. Bc3 Rf6 20. g3 Nf7 21. gxf4 exf4 22. Bxf6 Bxf6 {0-1 (32) Crevatin,L (2275)-Kucuksari,K (2369) Uppsala 2021}) 15. Bxh6 {[%emt 0:16:33]} Nxh6 {[%emt 0:00:26]} 16. Qd2 {[%emt 0:08:48]} Nc5 {[%emt 0:00:56]} 17. Rdf1 {[%emt 0:01:11]} Bd7 {[%emt 0:03:42]} 18. b3 {[%emt 0:04:42]} Qe7 {[%emt 0:11:44]} 19. Bd1 {[%emt 0:01:31]} Rab8 {[%emt 0:02:02]} 20. a4 {[%emt 0:06:53] Against b5} (20. Be2 $11) 20... c6 $15 {[%emt 0:06:40]} 21. Bc2 {[%emt 0:02:18]} (21. Kb2 $15) 21... Be8 {[%emt 0:10:55] Black is more active.} (21... b5 $1 $17 {[%cal Rb5c4] White must now prevent ...bxc4.} 22. dxc6 bxa4 23. cxd7 axb3) 22. Rd1 $1 {[%emt 0:02:56]} Bf7 {[%emt 0:06:52]} (22... Qc7 $15) 23. Nge2 {[%emt 0:04:33] [#]} (23. Kb2 $11) 23... Qc7 {[%emt 0:03:44]} ({Reject} 23... Ng4 24. Rdf1 $14) ({Black should play} 23... Rfc8 $1 $17 {[%cal Ob7b5] Hoping for ...b5!} 24. Kb2 Qc7) 24. Kb2 {[%emt 0:01:17]} Ng4 {[%emt 0:09:19]} 25. Nc1 {[%emt 0:03:13]} ({Better is} 25. Rhf1 $1 $11) 25... b5 $1 {[%emt 0:01:40]} 26. cxb5 {[%emt 0:03:53]} cxb5 {[%emt 0:00:07][%cal Bc6b5,Bb5a4,Ba4b3][%mdl 32]} 27. f3 {[%emt 0:01:14] [#] This costs White the game.} (27. axb5 $17 {keeps fighting.} Be8 28. f3) 27... bxa4 $1 $19 {[%emt 0:01:23]} 28. fxg4 {[%emt 0:00:01]} axb3 {[%emt 0:00:18]} 29. Bd3 {[%emt 0:00:14]} (29. Nxb3 $2 a4 30. Nxa4 Nxa4+ 31. Kb1 hxg4 $19) 29... a4 {[%emt 0:01:48] Threatens to win with ...a3+.} (29... hxg4 $2 30. N1e2 $19) 30. Nb1 {[%emt 0:00:52]} a3+ {[%emt 0:04:36]} ({But not} 30... hxg4 $2 31. Na3 $19) 31. Nxa3 {[%emt 0:00:03]} Ra8 {[%emt 0:05:29] Really sharp!} (31... Na4+ 32. Kb1 $15) 32. Qb4 {[%emt 0:02:45]} (32. Nb5 Nxd3+ 33. Nxd3) 32... Na4+ {[%emt 0:02:28]} (32... Ra4 $142 33. Qe1 {[#]} Rxa3 $1 {[%mdl 512]}) 33. Kb1 {[%emt 0:00:10]} (33. Ka1 $2 Rfb8 34. Qc4 b2+ 35. Kb1 bxc1=N+ 36. Kxc1 Qa5) (33. Kxb3 $142 Rfb8 34. Nb5) 33... Rfb8 {[%emt 0:00:18]} ({Not} 33... Nc3+ $2 34. Kb2 Rfc8 35. Ne2 Nxe2 36. Bxe2 $19) 34. Qc4 {[%emt 0:00:37]} Nc3+ {[%emt 0:00:55][%mdl 64] Discovered Attack, Double Attack} 35. Kb2 {[%emt 0:00:04]} Nxd1+ {[%emt 0:00:10]} 36. Rxd1 {[%emt 0:00:02]} Qa5 {[%emt 0:00:05]} 37. Nb5 {[%emt 0:00:34]} Qa1+ {[%emt 0:00:21]} 38. Kxb3 {[%emt 0:00:01] [#]} Rxb5+ $1 {[%emt 0:00:14][%mdl 512] Weighted Error Value: White=0.79/Black=0.28 (precise)} 0-1

[Event "15th Tashkent Open Agzamov 2022"]
[Site "Tashkent"]
[Date "2022.05.08"]
[Round "7.3"]
[White "Madaminov, Mukhiddin"]
[Black "Sanal, Vahap"]
[Result "0-1"]
[ECO "E62"]
[WhiteElo "2308"]
[BlackElo "2575"]
[Annotator "TA"]
[PlyCount "72"]
[EventDate "2022.05.05"]
[EventType "swiss"]
[EventCountry "UZB"]
[SourceTitle "playchess.com"]
[Source "ChessBase"]
[SourceQuality "1"]
[TimeControl "5400+30"]

{[%evp 15,72,31,41,13,16,17,18,13,24,-12,9,14,9,20,27,-22,-10,-39,-26,-83,-36,-39,-25,-20,-21,-22,-29,-31,-33,-50,-57,-71,-81,-162,-189,-260,-240,-286,-283,-818,-442,-783,-762,-29987,-1059,-29989,-29990,-29993,-249,-29994,-29995,-29995,-29992,-29992,-29993,-29993,-29994,-29994,-1576]} 1. d4 {[%emt 0:01:00]} Nf6 {[%emt 0:00:12]} 2. c4 {[%emt 0:00:15]} g6 {[%emt 0:01:48]} 3. Nc3 {[%emt 0:02:30]} Bg7 {[%emt 0:00:27]} 4. Nf3 {[%emt 0:00:51]} d6 {[%emt 0:00:22]} 5. g3 {[%emt 0:01:16]} O-O {[%emt 0:00:34]} 6. Bg2 {[%emt 0:00:43]} c6 {[%emt 0:00:12]} 7. O-O {[%emt 0:01:06]} Qb6 {[%emt 0:00:07]} 8. b3 {[%emt 0:12:29]} e5 {[%emt 0:00:11]} 9. h3 {[%emt 0:17:40] 9.Bb2 is becoming the main line. E62: King's Indian: Fianchetto: 6...c6 and Panno Variation (6...Nc6) without ...a6.} e4 {[%emt 0:02:36]} 10. Ne1 {[%emt 0:00:15]} d5 {[%emt 0:00:14] [#]} 11. Nc2 $146 {[%emt 0:01:25] The position is equal.} ({Predecessor:} 11. Ba3 Re8 12. Nc2 Na6 {½-½ (12) Krejci,J (2521)-Narayanan,S (2475) Olomouc 2013}) 11... Be6 {[%emt 0:03:06]} 12. Rb1 {[%emt 0:09:35]} Re8 {[%emt 0:01:45]} 13. c5 {[%emt 0:06:15]} Qd8 {[%emt 0:01:24]} 14. b4 {[%emt 0:00:35]} Qc8 {[%emt 0:06:34]} 15. Kh2 {[%emt 0:01:15]} (15. g4 $142) 15... Nh5 $11 {[%emt 0:01:39]} 16. Rg1 {[%emt 0:05:55]} f5 {[%emt 0:00:44]} 17. Bf4 {[%emt 0:01:40]} (17. Bd2 $11 {keeps the balance.}) 17... Nd7 {[%emt 0:04:50]} ({Better is} 17... Nxf4 $17 18. gxf4 Nd7) 18. Bd6 {[%emt 0:01:55]} Bf8 {[%emt 0:03:55]} 19. Bxf8 $1 {[%emt 0:00:35]} Rxf8 {[%emt 0:00:03]} 20. e3 {[%emt 0:00:15]} Ndf6 {[%emt 0:00:50]} 21. b5 {[%emt 0:33:30]} g5 {[%emt 0:02:35]} 22. Nb4 {[%emt 0:00:00]} Kh8 $1 {[%emt 0:02:28]} 23. bxc6 {[%emt 0:00:00]} bxc6 {[%emt 0:00:04]} 24. Qa4 {[%emt 0:00:00]} (24. f4 $17 {was called for.} Rg8 25. Ne2) 24... Bd7 $19 {[%emt 0:00:23]} 25. Na6 {[%emt 0:00:00]} (25. Qa6 $142 Qc7 26. Bf1) 25... f4 {[%emt 0:00:52]} 26. Qa5 {[%emt 0:00:00]} Rf7 {[%emt 0:15:29][%cal Od7h3] Threatens to win with ...Bxh3!} 27. Nc7 $2 {[%emt 0:00:00]} (27. gxf4 gxf4 28. Bf1) 27... Qd8 {[%emt 0:07:15]} 28. gxf4 {[%emt 0:00:31]} (28. Rb7 $142 Bc8 29. Rxa7 Rxa7 30. Qxa7) 28... gxf4 {[%emt 0:00:48][%cal Of6g4] Hoping for ...Ng4+!} 29. Rb7 {[%emt 0:00:48] [#]} fxe3 {[%emt 0:02:18]} (29... Ng4+ $142 $1 {[%mdl 512]} 30. hxg4 Qh4+ 31. Bh3 {[#]} fxe3 $1 32. Nxe4 dxe4 $1 33. Qe1 exf2 $1 34. Qf1 fxg1=R 35. Kxg1 Rxf1+ 36. Bxf1 Rf8 37. Bg2 Qf2+ 38. Kh2 Nf4 39. Rb2 Qxb2 40. Kg3 Qxg2+ 41. Kh4 Qxg4#) 30. Nd1 {[%emt 0:01:31] [#]} Ng4+ $1 {[%emt 0:00:30][%mdl 512]} 31. hxg4 {[%emt 0:00:30]} (31. Kh1 exf2) 31... Qh4+ {[%emt 0:00:30]} 32. Bh3 {[%emt 0:00:30] [#]} Rf3 $1 {[%emt 0:00:30][%csl Gf3][%cal Rh4h3][%mdl 512] Black mates.} 33. Rg3 {[%emt 0:00:30]} Nxg3 {[%emt 0:00:30]} 34. Nxa8 {[%emt 0:00:30]} Nf1+ {[%emt 0:00:30]} 35. Kg1 {[%emt 0:00:30]} exf2+ {[%emt 0:00:30]} 36. Kxf1 {[%emt 0:00:30]} Qxh3+ {[%emt 0:00:30] Weighted Error Value: White=0.72/Black=0.31} 0-1

[Event "15th Tashkent Open Agzamov 2022"]
[Site "Tashkent"]
[Date "2022.05.08"]
[Round "7.4"]
[White "Romanov, Evgeny"]
[Black "Vakhidov, Jakhongir"]
[Result "1-0"]
[ECO "D02"]
[WhiteElo "2573"]
[BlackElo "2552"]
[Annotator "TA"]
[PlyCount "129"]
[EventDate "2022.05.05"]
[EventType "swiss"]
[EventCountry "UZB"]
[SourceTitle "playchess.com"]
[Source "ChessBase"]
[SourceQuality "1"]
[TimeControl "5400+30"]

{[%evp 9,129,-18,-14,-17,-10,-8,2,-8,4,0,0,-15,20,0,0,0,10,-1,5,2,12,10,36,36,35,30,29,43,65,69,70,76,78,17,16,2,27,33,43,44,67,25,25,19,22,0,37,44,37,34,83,85,78,81,83,82,82,79,81,75,89,89,133,140,144,18,135,35,75,84,102,97,132,110,876,859,822,822,819,778,755,746,740,709,637,351,415,247,358,357,379,355,363,363,363,333,353,354,339,326,425,402,431,386,350,325,29972,29973,29972,29972,29971,29966,29977,29978,29978,29979,29979,29979,29981,29982,29981,29977]} 1. d4 {[%emt 1:31:00]} Nf6 {[%emt 0:06:01]} 2. Nf3 {[%emt 0:00:00]} g6 {[%emt 0:00:08]} 3. Nbd2 {[%emt 0:00:00]} d5 {[%emt 0:00:26]} 4. Nb3 {[%emt 0:00:00]} Nbd7 {[%emt 0:01:27]} 5. c3 {[%emt 0:00:00]} Bg7 {[%emt 0:00:47] [#]} 6. h3 $146 {[%emt 0:00:00] D02: 1 d4 d5 2 Nf3 sidelines, including 2...Nf6 3 g3 and 2...Nf6 3 Bf4.} ({Predecessor:} 6. Bf4 Ne4 7. e3 O-O 8. Rc1 c5 9. c4 cxd4 10. exd4 Ndf6 11. h3 Bd7 12. Be2 {½-½ (45) Hampl,J (1784)-Tschunko,O (1948) Czech Republic 2007}) 6... c5 {[%emt 0:03:13]} 7. Bf4 {[%emt 0:00:00]} O-O {[%emt 0:06:47]} 8. e3 {[%emt 0:00:00] The position is equal.} Qb6 {[%emt 0:05:19]} 9. Qc2 {[%emt 0:00:00]} Ne4 {[%emt 0:00:41]} 10. Be2 {[%emt 0:00:00]} Ndf6 {[%emt 0:06:22]} 11. g4 {[%emt 0:00:00]} cxd4 {[%emt 0:13:25]} 12. exd4 {[%emt 0:00:00]} Ne8 {[%emt 0:00:25]} 13. Ne5 {[%emt 0:00:00]} f6 {[%emt 0:11:52]} 14. Nd3 {[%emt 0:00:00]} e5 {[%emt 0:00:31]} 15. Be3 {[%emt 0:00:00]} Qc7 {[%emt 0:00:15]} 16. O-O-O {[%emt 0:00:00]} a5 {[%emt 0:04:36] Against Nb4} 17. Ndc5 {[%emt 0:00:00]} exd4 {[%emt 0:03:47]} 18. Bxd4 {[%emt 0:00:00]} Nxf2 {[%emt 0:03:15]} 19. Bxf2 {[%emt 0:00:00]} Qf4+ {[%emt 0:00:05]} 20. Kb1 {[%emt 0:00:00]} Qxf2 {[%emt 0:00:06]} 21. Nd4 {[%emt 0:00:00]} (21. Rxd5 $16 {aiming for Nd7.} Kh8 22. Rf1) 21... Nc7 $11 {[%emt 0:02:06]} 22. h4 {[%emt 0:00:00][%cal Bh3h4,Bh4h5,Bh5h6][%mdl 1056] Threatens to win with h5. White has compensation.} Re8 {[%emt 0:12:12][%cal Oe8e2]} (22... f5 $5 {[%cal Rf5g4]} 23. h5 fxg4 24. hxg6 g3 $11) 23. Nd3 {[%emt 0:00:00] Pair of Knights!} Qg3 {[%emt 0:03:20]} 24. h5 {[%emt 0:00:00] Hoping for hxg6.} g5 {[%emt 0:00:17]} (24... Bxg4 $2 25. Rdg1 Qd6 26. Bxg4 $18) 25. h6 {[%emt 0:00:00]} Bf8 {[%emt 0:00:02]} 26. Rdf1 {[%emt 0:00:00]} Qd6 {[%emt 0:00:23]} 27. Rh3 {[%emt 0:00:00][%cal Bh1h3,Bh3f3,Bf3f5][%mdl 32]} Bd7 {[%emt 0:09:54]} 28. Rhf3 {[%emt 0:00:00]} Ra6 {[%emt 0:00:22][%cal Oe8e2]} 29. Nc1 {[%emt 0:00:00]} Rb6 {[%emt 0:02:38]} (29... b5 $14 {deserves consideration.}) 30. Bd3 $36 {[%emt 0:00:00][%mdl 2048] White is on the roll.} Qe7 {[%emt 0:00:25]} 31. Nf5 $1 {[%emt 0:00:00]} (31. Bf5 $6 Nb5 32. Nxb5 Bxb5 $15) 31... Bxf5 {[%emt 0:00:39]} 32. Rxf5 {[%emt 0:00:00]} Bxh6 {[%emt 0:01:10]} 33. Qh2 {[%emt 0:00:00]} Bf8 {[%emt 0:00:03] [#]} 34. Rxf6 $1 {[%emt 0:00:00]} Rxf6 {[%emt 0:00:02]} 35. Rxf6 {[%emt 0:00:00][%cal Od3f5]} h6 {[%emt 0:00:01]} 36. Rg6+ {[%emt 0:00:27]} Kh8 {[%emt 0:00:01]} 37. a4 {[%emt 0:00:27]} (37. Bf5 $16) 37... Rd8 {[%emt 0:01:22]} (37... Qe5 $1 $11 {keeps the balance.} 38. Qxe5+ (38. Rxh6+ Bxh6 39. Qxh6+ Kg8 $11) 38... Rxe5) 38. Rb6 {[%emt 0:01:18]} (38. Nb3 $16) 38... Ne8 {[%emt 0:00:40]} 39. Nb3 {[%emt 0:02:59][%cal Bc1b3,Bb3d4,Bd4f5][%mdl 32]} Nd6 {[%emt 0:00:49] White must now prevent ...Qe3.} 40. Nd4 {[%emt 0:01:22]} Qc7 {[%emt 0:02:28] [#]} 41. Nf5 $1 {[%emt 0:07:22][%cal Ob1c2] 0x0.002b17382f60dp-1022s more active pieces.} ({Much weaker is} 41. Qe5+ $6 Bg7 42. Qe6 (42. Ne6 Bxe5 43. Nxc7 h5 $11) 42... Bxd4 43. Qxh6+ Kg8 44. cxd4 Qxb6 $11) 41... Ne8 $2 {[%emt 0:01:57][%mdl 8192] This costs Black the game.} (41... Qxb6 $2 42. Qe5+ Kg8 43. Qe6+ Nf7 44. Qxb6 $18) (41... Re8 $16 42. Rxd6 Re6) 42. Rxh6+ $18 {[%emt 0:02:12]} Bxh6 {[%emt 0:00:01]} 43. Qxh6+ {[%emt 0:00:02]} Kg8 {[%emt 0:00:27]} 44. Qxg5+ {[%emt 0:01:03]} Kf8 {[%emt 0:00:01]} 45. Qh6+ {[%emt 0:01:15]} Kg8 {[%emt 0:00:01]} 46. Qg6+ {[%emt 0:01:19]} Kf8 {[%emt 0:00:16]} 47. Nd4 {[%emt 0:01:09] White wants to mate with Ne6+.} Ng7 {[%emt 0:00:41]} 48. g5 {[%emt 0:00:00]} (48. Qf6+ $142 Kg8 49. Qh4) 48... Rd6 {[%emt 0:01:36]} (48... Qe7 $142 49. Qh6 Rd6) 49. Qh7 {[%emt 0:00:17]} Qf7 {[%emt 0:00:01]} 50. g6 {[%emt 0:01:02] Dancing on a razor blade.} Qf6 {[%emt 0:00:01]} 51. Qh8+ {[%emt 0:00:22]} Ke7 {[%emt 0:00:01]} 52. Qc8 {[%emt 0:00:30]} Rd7 {[%emt 0:01:08]} 53. Qc5+ {[%emt 0:00:59]} ({Not} 53. Bb5 Qxg6+ 54. Ka2 Qe8 55. Qc5+ (55. Bxd7 Qxd7 56. Qc5+ Kf7 $18) 55... Kf7 56. Bxd7 Qxd7 $18) 53... Qd6 {[%emt 0:00:01]} 54. Qxa5 {[%emt 0:00:18]} Kf6 {[%emt 0:00:26] [#]} 55. Qa8 $1 {[%emt 0:00:21] Strongly threatening Qh8.} Ke7 {[%emt 0:02:29]} 56. Nf5+ {[%emt 0:01:46]} Nxf5 {[%emt 0:00:05]} 57. Bxf5 {[%emt 0:00:01] Threatening mate with Qh8.} Qf4 $2 {[%emt 0:00:44]} (57... Kf6 $18) 58. Bxd7 {[%emt 0:00:38] White mates.} Qf1+ {[%emt 0:00:35]} 59. Ka2 {[%emt 0:00:09]} Qc4+ {[%emt 0:00:09]} 60. b3 {[%emt 0:00:12]} Qxc3 {[%emt 0:00:16]} 61. Qxb7 {[%emt 0:01:14]} Qd2+ {[%emt 0:00:30]} 62. Ka3 {[%emt 0:00:03]} Qc1+ {[%emt 0:01:07]} 63. Kb4 {[%emt 0:00:04]} Qe1+ {[%emt 0:00:34]} 64. Kb5 {[%emt 0:00:22]} Qf1+ {[%emt 0:00:29]} 65. Ka5 {[%emt 0:00:12] Weighted Error Value: White=0.20 (precise) /Black=0.26 (precise)} 1-0

[Event "15th Tashkent Open Agzamov 2022"]
[Site "Tashkent"]
[Date "2022.05.08"]
[Round "7.5"]
[White "Suleymenov, Alisher"]
[Black "Utegaliyev, Azamat"]
[Result "1/2-1/2"]
[ECO "A42"]
[WhiteElo "2445"]
[BlackElo "2463"]
[Annotator "TA"]
[PlyCount "83"]
[EventDate "2022.05.05"]
[EventType "swiss"]
[EventCountry "UZB"]
[SourceTitle "playchess.com"]
[Source "ChessBase"]
[SourceQuality "1"]
[TimeControl "5400+30"]

{[%evp 20,83,41,43,52,47,68,43,51,58,62,58,62,50,58,29,50,18,26,6,18,0,0,0,4,4,4,4,12,15,18,1,17,0,7,7,38,37,37,32,19,12,11,11,55,54,54,55,55,55,55,55,55,56,59,49,60,55,61,56,62,0,58,51,56,0]} 1. d4 {[%emt 0:00:03]} g6 {[%emt 0:01:01]} 2. c4 {[%emt 0:00:15]} Bg7 {[%emt 0:00:04]} 3. e4 {[%emt 0:00:12]} d6 {[%emt 0:03:20]} 4. Nc3 {[%emt 0:00:30]} e5 {[%emt 0:01:18]} 5. Nf3 {[%emt 0:00:09]} exd4 {[%emt 0:00:24]} 6. Nxd4 {[%emt 0:00:05]} Nc6 {[%emt 0:00:05]} 7. Be3 {[%emt 0:00:16]} Nge7 {[%emt 0:00:11]} 8. Be2 {[%emt 0:00:05]} f5 {[%emt 0:00:36]} 9. O-O {[%emt 0:02:11]} O-O {[%emt 0:01:18]} 10. Qd2 {[%emt 0:00:04]} fxe4 {[%emt 0:12:36]} 11. Nxe4 {[%emt 0:00:04]} Bf5 {[%emt 0:08:32] [#] aiming for ...Bxd4. A42: Modern Defence: Averbakh Variation.} 12. Nc3 {[%emt 0:04:31] [#]} ({Of course not} 12. Nxf5 Nxf5 13. Bg5 Qd7 $11) 12... Qd7 $146 {[%emt 0:01:26]} ({Predecessor:} 12... Nxd4 13. Bxd4 Bxd4 14. Qxd4 Nc6 15. Qd2 Qf6 16. Nd5 Qd4 17. Rfd1 Qxd2 18. Rxd2 Rac8 19. h3 Rfe8 {0-1 (75) Esipenko,A (2682)-Andreikin,D (2726) Chess.com INT 2020}) 13. Rfe1 {[%emt 0:05:20]} Rae8 {[%emt 0:02:14]} 14. Rad1 {[%emt 0:06:20]} Nxd4 {[%emt 0:04:07]} 15. Bxd4 {[%emt 0:00:06]} Nc6 {[%emt 0:00:06]} 16. Bxg7 {[%emt 0:00:22]} Qxg7 {[%emt 0:00:05]} 17. Nd5 {[%emt 0:12:03]} Be6 {[%emt 0:03:58]} 18. Bf1 {[%emt 0:06:52]} Qf7 {[%emt 0:01:08]} 19. b3 {[%emt 0:05:30]} Ne5 {[%emt 0:07:01]} 20. h3 {[%emt 0:02:18]} Bxd5 {[%emt 0:07:25]} 21. cxd5 {[%emt 0:01:35]} Qf4 {[%emt 0:00:13]} 22. Qxf4 {[%emt 0:01:29]} (22. Re2 {looks sharper.} Re7 23. Qxf4 Rxf4 24. g3) 22... Rxf4 {[%emt 0:00:06]} 23. Re2 {[%emt 0:01:26]} g5 {[%emt 0:00:32]} 24. Rc2 {[%emt 0:01:26]} Re7 {[%emt 0:00:05]} 25. Be2 {[%emt 0:10:20]} Kg7 {[%emt 0:01:00]} 26. g3 {[%emt 0:02:49]} Rf6 {[%emt 0:12:49]} 27. b4 {[%emt 0:01:23]} c6 {[%emt 0:02:19]} 28. a4 {[%emt 0:05:17][%cal Ba2a4,Ba4a5][%mdl 32]} h6 {[%emt 0:00:45]} 29. a5 {[%emt 0:01:30]} (29. Kg2 {seems wilder.} Ref7 30. Bh5 Rf8 31. Rd4) 29... cxd5 {[%emt 0:01:49]} 30. b5 {[%emt 0:05:51]} Nc4 {[%emt 0:01:38]} 31. a6 {[%emt 0:09:05]} Rfe6 {[%emt 0:05:16] [#]} 32. axb7 $1 {[%emt 0:01:31]} Rxb7 {[%emt 0:00:04]} 33. Rxd5 {[%emt 0:00:32]} Nb6 {[%emt 0:00:05]} 34. Rd4 {[%emt 0:02:40]} d5 {[%emt 0:00:22]} 35. Bf3 {[%emt 0:02:16]} Rd6 {[%emt 0:00:10]} 36. h4 {[%emt 0:01:53]} Kf6 {[%emt 0:01:13]} 37. h5 {[%emt 0:01:27]} Re7 {[%emt 0:02:53]} 38. Kg2 {[%emt 0:02:51]} Ke5 {[%emt 0:01:10]} 39. Rd1 {[%emt 0:01:46] White is more active.} Kf5 {[%emt 0:04:27]} 40. Rd4 {[%emt 0:02:11]} Ke5 $1 {[%emt 0:00:37]} 41. Rd3 {[%emt 0:00:14]} Kf5 {[%emt 0:02:06]} 42. Rd4 {[%emt 0:01:53] Weighted Error Value: White=0.08 (flawless) /Black=0.06 (flawless)} ({Better is} 42. Rc5 $14) 1/2-1/2

[Event "15th Tashkent Open Agzamov 2022"]
[Site "Tashkent"]
[Date "2022.05.08"]
[Round "7.6"]
[White "Bernadskiy, Vitaliy"]
[Black "Assaubayeva, Bibisara"]
[Result "1/2-1/2"]
[ECO "E66"]
[WhiteElo "2636"]
[BlackElo "2439"]
[Annotator "TA"]
[PlyCount "68"]
[EventDate "2022.05.05"]
[EventType "swiss"]
[EventCountry "UZB"]
[SourceTitle "playchess.com"]
[Source "ChessBase"]
[SourceQuality "1"]
[TimeControl "5400+30"]

{[%evp 24,68,20,0,45,45,40,35,60,52,47,54,54,46,54,18,21,23,20,17,21,0,20,0,0,0,0,-35,0,0,0,0,0,0,0,0,0,0,0,0,0,0,0,-4,0,0,0]} 1. d4 {[%emt 0:00:03]} Nf6 {[%emt 0:00:36]} 2. c4 {[%emt 0:00:06]} g6 {[%emt 0:00:07]} 3. g3 {[%emt 0:00:52]} Bg7 {[%emt 0:00:05]} 4. Bg2 {[%emt 0:00:05]} O-O {[%emt 0:00:08]} 5. Nc3 {[%emt 0:01:00]} d6 {[%emt 0:00:25]} 6. Nf3 {[%emt 0:00:19]} c5 {[%emt 0:00:50]} 7. O-O {[%emt 0:03:14]} Nc6 {[%emt 0:00:09]} 8. d5 {[%emt 0:05:09]} Na5 {[%emt 0:00:07]} 9. Qd3 {[%emt 0:00:06]} e6 {[%emt 0:02:38]} 10. e4 {[%emt 0:00:22]} exd5 {[%emt 0:03:52]} 11. cxd5 {[%emt 0:00:07]} Re8 {[%emt 0:00:17]} 12. Bf4 {[%emt 0:01:04]} a6 {[%emt 0:08:11]} 13. Rfe1 {[%emt 0:03:39] [#]} Ng4 $146 {[%emt 0:18:52] E66: King's Indian: Fianchetto: 6...c5 7 0-0 Nc6 8 d5.} ({Predecessor:} 13... Nh5 14. Be3 b5 15. Nd2 c4 16. Qc2 Qc7 17. Ne2 Bd7 18. Bd4 Bxd4 19. Nxd4 Qc5 20. Ne2 Rac8 21. a3 {0-1 (48) Geru,V (1934)-Naidich,V Kishinev 2007}) 14. h3 {[%emt 0:04:59]} Ne5 {[%emt 0:00:39]} 15. Nxe5 {[%emt 0:00:11]} Bxe5 {[%emt 0:01:14] White is slightly better.} 16. Bxe5 {[%emt 0:00:51]} dxe5 {[%emt 0:00:36]} 17. Qe3 {[%emt 0:10:14]} b6 {[%emt 0:04:14]} 18. b3 {[%emt 0:00:15] Prevents Nc4.} Nb7 {[%emt 0:00:39]} 19. f4 {[%emt 0:02:05][%cal Of4f5]} Nd6 {[%emt 0:02:08]} 20. Na4 {[%emt 0:09:39]} Ra7 {[%emt 0:10:19][%cal Ba8a7,Ba7e7,Be7c7][%mdl 32]} 21. b4 {[%emt 0:07:32]} cxb4 {[%emt 0:09:34]} 22. Nxb6 {[%emt 0:02:42][%cal Ob6c4]} Rae7 {[%emt 0:07:29][%cal Oc8f5] [#] White must now prevent ...Bf5!} 23. Nxc8 {[%emt 0:00:38]} Qxc8 {[%emt 0:05:32]} 24. f5 {[%emt 0:03:56]} Rc7 {[%emt 0:01:52]} 25. Qh6 {[%emt 0:08:49] Intending f6 and mate.} Rd8 {[%emt 0:01:28]} 26. Rf1 {[%emt 0:02:48] The position is equal.} Rc2 {[%emt 0:01:06] Strongly threatening ...Qc3.} 27. Rac1 {[%emt 0:00:20]} Qc5+ {[%emt 0:03:29]} 28. Kh2 {[%emt 0:00:33]} Rc8 {[%emt 0:00:44][%cal Rc2c1]} (28... Nxe4 $2 29. Rxc2 (29. f6 Nxf6 30. Rxc2 Qxc2 $18) 29... Qxc2 30. f6 (30. Qh4 Rxd5 31. Qxe4 Qxe4 $16) 30... Nxf6 31. Qg5 $18 (31. Rxf6 Rxd5 32. Rxa6 Rd8 $18)) 29. Rxc2 {[%emt 0:04:42]} Qxc2 {[%emt 0:00:02]} 30. Qg5 {[%emt 0:00:04] [#] aiming for fxg6.} Nxe4 {[%emt 0:05:42]} 31. Qe7 {[%emt 0:04:35][%csl LRb4,LRe5] And now fxg6 would win.} Qd3 $1 {[%emt 0:00:21]} (31... Qxa2 32. fxg6 fxg6 33. Qe6+ Kg7 34. Qxc8 $18) 32. fxg6 {[%emt 0:24:22]} Qxg3+ {[%emt 0:00:04]} 33. Kg1 {[%emt 0:00:11] Chess con chili.} Qe3+ {[%emt 0:00:02]} 34. Kh2 {[%emt 0:00:07]} Qg3+ {[%emt 0:00:04] Weighted Error Value: White=0.06 (flawless) /Black=0.07 (flawless)} 1/2-1/2